Cogmind - Beta 15 @@@ ROGUE MODE // 2025.10.04 @ 18:53:27 Player: Grey Result: Self-destructed Performance ------------- Evolutions (2) 1000 Regions Visited (4) 800 Robots Destroyed (16) 80 Value Destroyed (467) 467 Prototype IDs (2) 40 Alien Tech Used (0) 0 Bonus (0) 0 TOTAL SCORE: 2387 Bonus ------- None Cogmind --------- Core Integrity 19/550 Matter 89/300 Energy 150/150 System Corruption 5% Temperature Warm (187) Movement Core (100) Ox1 Location -8/Materials Parts ------- > --- POWER (1) -------- Micro Nuclear Core > --- PROPULSION (2) --- (None) > --- UTILITY (4) ------ (None) > --- WEAPON (4) ------- (None) > --- INVENTORY (5) ---- Micro Nuclear Core Peak State ------------ > --- POWER ------------ Deuterium Engine > --- PROPULSION ------- Wheel Wheel > --- UTILITY ---------- Small Storage Unit Hardlight Generator > --- WEAPON ----------- Flak Cannon Flak Cannon Flak Cannon Flak Cannon > --- INVENTORY -------- Deuterium Engine Deuterium Engine [Rating: 21] Favorites ----------- Power Ion Engine Engine Ion Engine Power Core Micro Nuclear Core Propulsion Wheel Wheel Wheel Utility Small Storage Unit Device Hardlight Generator Storage Small Storage Unit Weapon Flak Cannon Ballistic Gun Light Assault Rifle Ballistic Cannon Flak Cannon Launcher Grenade Launcher Special Weapon Mining Laser Slashing Weapon Greatsword Build | -11 -10 -9 -9 -8 ------- Run | Yrd Mat Mat Min Mat Slots Evolved 4 | . . 2 . 2 Power . | . . . . . Propulsion . | . . . . . Utility 2 | . . 1 . 1 Weapon 2 | . . 1 . 1 Parts Attached 22 | 5 1 1 2 13 Power 6 | 1 . . 1 4 Engine 5 | 1 . . 1 3 Core 1 | . . . . 1 Reactor . | . . . . . Propulsion 3 | 2 . 1 . . Treads . | . . . . . Leg . | . . . . . Wheel 3 | 2 . 1 . . Hover . | . . . . . Flight . | . . . . . Utility 2 | 1 . . . 1 Device 1 | . . . . 1 Storage 1 | 1 . . . . Processor . | . . . . . Hackware . | . . . . . Protection . | . . . . . Artifact . | . . . . . Weapon 11 | 1 1 . 1 8 Energy Gun . | . . . . . Energy Cannon . | . . . . . Ballistic Gun 1 | 1 . . . . Ballistic Cannon 4 | . . . . 4 Launcher 1 | . 1 . . . Special Weapon 1 | . . . 1 . Impact Weapon . | . . . . . Slashing Weapon 4 | . . . . 4 Piercing Weapon . | . . . . . Special Melee Weapon . | . . . . . Unidentified Prototypes . | . . . . . Parts Lost 20 | . . 2 2 16 Power 4 | . . . 1 3 Propulsion 3 | . . 1 . 2 Utility 2 | . . . . 2 Weapon 11 | . . 1 1 9 Highest Loss Streak 9 | . . 2 2 9 To Critical Strikes 2 | . . . . 2 Average Backups 1 | 1 1 1 . 1 Power 1 | . 1 1 . 1 Propulsion . | . . . . . Utility . | . . . . . Weapon . | . . . . . Tool/Special . | . . . . . Unused Backups 2 | . . . . 2 Power 1 | . . . . 1 Propulsion . | . . . . . Utility 1 | . . . . 1 Weapon . | . . . . . Tool/Special . | . . . . . Average Slot Usage (%) 57 | . 82 61 49 50 Engine 9 | . 14 11 11 7 Wheel 15 | . 28 21 22 9 Device 1 | . . . . 2 Storage 9 | . 14 11 11 7 Ballistic Gun 4 | . 14 7 . . Ballistic Cannon 10 | . . . . 18 Launcher 4 | . 11 10 2 . Special Weapon 1 | . . . 2 1 Slashing Weapon 1 | . . . . 2 Peak Build Rating 21 | 5 6 6 5 21 Average Rating 9 | 2 5 5 4 13 On Entrance 4 | . 5 6 5 5 Naked Turns 8 | . . . . 8 Heaviest Build 43 | 11 14 14 11 43 Greatest Support 26 | 20 20 26 20 20 Greatest Overweight (x) 6 | . . . . 6 Average Overweight (x) . | . . . . 1 Largest Inventory Capacity 8 | 8 8 8 8 8 Average Capacity 7 | 6 8 8 8 7 Most Carried 6 | 5 2 3 1 6 Average Carried 1 | 1 1 1 . 1 Final Capacity 8 | 8 8 8 8 5 Final Carried 1 | 1 1 1 . 1 Class Distribution -------------------- 68% | Mutant 20% | Tank 11% | Gunner Dominant Class ---------------- Mutant | -10/Materials Mutant | -9/Materials Mutant | -9/Mines Mutant | -8/Materials Resources | -11 -10 -9 -9 -8 ----------- Run | Yrd Mat Mat Min Mat Matter Collected 580 | 239 35 10 . 296 Remotely . | . . . . . Salvage Created 437 | . 50 54 40 293 Parts 23 | . 6 2 2 13 Haulers Intercepted . | . . . . . Recyclers Shooed 1 | . . . 1 . Parts Field Recycled . | . . . . . Retrieved Matter . | . . . . . Parts Self-Destructed . | . . . . . Prevented . | . . . . . Kills | -11 -10 -9 -9 -8 ------- Run | Yrd Mat Mat Min Mat Combat Hostiles Destroyed 14 | . 4 2 1 7 Melee 1 | . . . . 1 Guns 1 | . 1 . . . Cannons 6 | . . . . 6 AOE 6 | . 3 2 1 . Classes Destroyed 5 | . 2 1 . 2 Recycler 2 | . . . . 2 Swarmer 5 | . 3 . . 2 Grunt 7 | . 1 1 1 4 Duelist 1 | . . 1 . . Sentry 1 | . . . . 1 Best Kill Streak 4 | . 3 2 1 4 Combat Bots Only 4 | . 3 2 1 4 Max Kills in Single Turn 2 | . 2 1 1 2 Gunslinging . | . . . . . Exploded 2 | . 2 1 1 . Melee 1 | . . . . 1 Uniques/NPCs Destroyed . | . . . . . Combat | -11 -10 -9 -9 -8 -------- Run | Yrd Mat Mat Min Mat Hostile Shots Fired 262 | . 11 14 9 228 Missed 84 | . 6 2 3 73 Hits 178 | . 5 12 6 155 Melee 17 | . . 7 . 10 Projectile 161 | . 5 5 6 145 Critical Strikes 10 | . . 1 . 9 Part Disruptions 1 | . 1 . . . Damage Taken 2746 | . 78 339 69 2260 Core 688 | . . 134 23 531 Absorbed by Shields 100 | . . . . 100 Core Remaining (%) 86 | 100 100 . 60 . Volleys Fired 57 | . 14 17 2 24 Largest 4 | . 2 2 1 4 Hottest 148 | . 50 50 100 148 Shots Fired 99 | . 16 18 2 63 Gun 27 | . 14 13 . . Cannon 63 | . . . . 63 Launcher 8 | . 2 5 1 . Special 1 | . . . 1 . Kinetic 90 | . 14 13 . 63 Thermal 1 | . . . 1 . Explosive 8 | . 2 5 1 . Electromagnetic . | . . . . . Robot Hit Streak 7 | . 3 7 2 5 Robot Miss Streak 7 | . 2 1 1 7 Penetration Max . | . . . . . Secondary Targets . | . . . . . Shots Hit Robots 84 | . 7 15 1 61 Core Hits 52 | . 5 7 1 39 Critical Kills . | . . . . . Critical Parts Destroyed . | . . . . . Critical Strikes 2 | . . . . 2 Sever 2 | . . . . 2 Melee Attacks 7 | . . . . 7 Impact . | . . . . . Slashing 7 | . . . . 7 Piercing . | . . . . . Sneak Attacks . | . . . . . Combat Hostiles . | . . . . . Follow-up Attacks 1 | . . . . 1 Damage Inflicted 1626 | . 214 269 96 1047 Guns 150 | . 59 91 . . Cannons 656 | . . . . 656 Explosions 429 | . 155 178 96 . Melee 370 | . . . . 370 Ramming 21 | . . . . 21 Kinetic 806 | . 59 91 . 656 Thermal . | . . . . . Explosive 429 | . 155 178 96 . Electromagnetic . | . . . . . Impact . | . . . . . Slashing 370 | . . . . 370 Piercing . | . . . . . Highest Corruption 5 | . 2 . . 5 Average Corruption 4 | . 2 . . 4 Corruption Purged . | . . . . . Corruption Blocked . | . . . . . Effects 4 | . . . . 4 Matter Fused 2 | . . . . 2 Heat Flow Errors 1 | . . . . 1 Energy Discharges 1 | . . . . 1 Overload Shots . | . . . . . Overflow Damage 37 | . 11 . . 26 Projectiles . | . . . . . Explosions 11 | . 11 . . . Melee 26 | . . . . 26 Knockbacks 26 | . . . . 26 Impact . | . . . . . Kinetic 26 | . . . . 26 Secondary . | . . . . . Self-Inflicted Damage 48 | . . 40 . 8 Shots 1 | . . 1 . . Rammed 13 | . . . . 13 Targets Rammed 13 | . . . . 13 Kicked . | . . . . . Crushed . | . . . . . Highest Temperature 288 | . 20 4 8 288 Average Temperature 116 | . 9 3 5 130 Received Heat Transfer 878 | . 30 30 39 779 Effects 3 | . . . . 3 Interference 3 | . . . . 3 Siege Activations . | . . . . . Martial Activations . | . . . . . Shielding Activations . | . . . . . Robots Disrupted . | . . . . . Combat Hostiles . | . . . . . Robots Corrupted . | . . . . . Combat Hostiles . | . . . . . Parts Fried . | . . . . . Impact Corruptions . | . . . . . Robots Melted . | . . . . . Combat Hostiles . | . . . . . Parts Melted . | . . . . . Heat Transferred . | . . . . . Parts Sabotaged . | . . . . . Parts Stolen . | . . . . . Parts Stripped . | . . . . . Power Chain Reactions . | . . . . . Alert | -11 -10 -9 -9 -8 ------- Run | Yrd Mat Mat Min Mat Maximum Alert Level . | . . . . . Low Security (%) 100 | 100 100 100 100 100 Level 1 . | . . . . . Level 2 . | . . . . . Level 3 . | . . . . . Level 4 . | . . . . . Level 5 . | . . . . . High Security . | . . . . . Max Security . | . . . . . Peak Influence 106 | . 106 79 46 100 Initial 44 | . . 44 22 . Average 34 | . 46 44 18 32 Influence Increases 465 | . 141 105 24 195 Destroy 0b10 Robot/C 280 | . 80 40 20 140 Destroy 0b10 Robot/NC 10 | . . . . 10 Destroy Leader 60 | . 20 10 . 30 Successful Hack 10 | . . 10 . . Disable Machine 30 | . 15 15 . . Destroy Structure 45 | . 11 30 4 . Partial Spotted 15 | . 15 . . . Lose Combat Pursuer 15 | . . . . 15 Influence Decreases 465 | . 35 152 83 195 Entered New Map 99 | . . 62 37 . Time Decay 240 | . 35 80 10 115 Lost Part 110 | . . 10 20 80 Lost Ally 16 | . . . 16 . Squads Dispatched 6 | . 1 1 . 4 Investigation . | . . . . . Extermination . | . . . . . Reinforcement 2 | . 1 1 . . Assault . | . . . . . Garrison 4 | . . . . 4 Intercept . | . . . . . Searches Triggered . | . . . . . Construction Impeded . | . . . . . Haulers Reinforced . | . . . . . Active Scanning Responses . | . . . . . Cargo Convoy Interrupts . | . . . . . Stealth | -11 -10 -9 -9 -8 --------- Run | Yrd Mat Mat Min Mat Distress Signals 3 | . . . . 3 Communications Jammed . | . . . . . Distress Signals . | . . . . . Times Spotted 32 | . 4 3 2 23 Peak Tracking Total 10 | . 2 2 2 10 Tactical Retreats 1 | . . . . 1 Traps | -11 -10 -9 -9 -8 ------- Run | Yrd Mat Mat Min Mat Traps Triggered 2 | . 2 . . . Indirectly . | . . . . . Trap Hack Attempts . | . . . . . Triggered . | . . . . . Disarmed . | . . . . . Reprogrammed . | . . . . . Reused . | . . . . . Traps Extracted . | . . . . . Installed . | . . . . . Triggered . | . . . . . Machines | -11 -10 -9 -9 -8 ---------- Run | Yrd Mat Mat Min Mat Machines Disabled 2 | . 1 1 . . Max in Single Turn 1 | . 1 1 . . Machines Repaired . | . . . . . Machines Dismantled . | . . . . . Machines Sabotaged . | . . . . . Overloaded Fab Kills . | . . . . . Hacking | -11 -10 -9 -9 -8 --------- Run | Yrd Mat Mat Min Mat Machines Accessed 4 | . 1 2 . 1 Terminals 3 | . 1 2 . . Fabricators . | . . . . . Repair Stations . | . . . . . Recycling Units . | . . . . . Scanalyzers . | . . . . . Garrison Access 1 | . . . . 1 Total Hacks 17 | . 5 11 . 1 Successful 5 | . . 5 . . Failed 12 | . 5 6 . 1 Catastrophic 1 | . . 1 . . Database Lockouts . | . . . . . Manual . | . . . . . Terminals 16 | . 5 11 . . Fabricators . | . . . . . Repair Stations . | . . . . . Recycling Units . | . . . . . Scanalyzers . | . . . . . Garrison Access 1 | . . . . 1 Terminal Hacks 5 | . . 5 . . Prototype ID Bank 1 | . . 1 . . Alert Level 1 | . . 1 . . Locate Traps 1 | . . 1 . . Reinforcement Status 1 | . . 1 . . Zone Layout 1 | . . 1 . . Fabricator Hacks . | . . . . . Repair Station Hacks . | . . . . . Recycling Unit Hacks . | . . . . . Scanalyzer . | . . . . . Garrison Access Hacks . | . . . . . Unauthorized Hacks . | . . . . . Terminals . | . . . . . Fabricators . | . . . . . Repair Stations . | . . . . . Recycling Units . | . . . . . Scanalyzers . | . . . . . Garrison Access . | . . . . . Data Cores Recovered . | . . . . . Used . | . . . . . Hacking Detections 4 | . 1 2 . 1 Full Trace Events . | . . . . . Feedback Events . | . . . . . Feedback Blocked . | . . . . . Robot Schematics Acquired . | . . . . . Robots Built . | . . . . . Authchips . | . . . . . Time . | . . . . . Total Robot Build Rating . | . . . . . Part Schematics Acquired . | . . . . . Parts Built . | . . . . . Authchips . | . . . . . Time . | . . . . . Total Part Build Rating . | . . . . . Parts Repaired . | . . . . . Time . | . . . . . Parts Recycled . | . . . . . Recycled Matter . | . . . . . Retrieved Matter . | . . . . . Retrieved Components . | . . . . . Parts Scanalyzed . | . . . . . Part Schematics Acquired . | . . . . . Parts Damaged . | . . . . . Bothacking | -11 -10 -9 -9 -8 ------------ Run | Yrd Mat Mat Min Mat Used RIF Installer . | . . . . . Robots Hacked . | . . . . . Non-combat . | . . . . . Combat . | . . . . . Robot Hacks Applied . | . . . . . Relay Couplers Released . | . . . . . Fabnet Peak Effective % . | . . . . . Robots Rewired . | . . . . . Allies Hacked . | . . . . . Hacks Repelled . | . . . . . Allies | -11 -10 -9 -9 -8 -------- Run | Yrd Mat Mat Min Mat Total Allies 1 | . . . 1 . Largest Group 1 | . . . 1 . Highest-Rated Group 31 | . . . 31 . Highest-Rated Ally 31 | . . . 31 . Total Orders . | . . . . . Ally Attacks 5 | . . . 5 . Total Damage 86 | . . . 86 . Kills . | . . . . . Allies Corrupted . | . . . . . Allies Melted 1 | . . . 1 . Intel | -11 -10 -9 -9 -8 ------- Run | Yrd Mat Mat Min Mat Active Infowar (turns) . | . . . . . Robot Analysis Total . | . . . . . Derelict Logs Recovered . | . . . . . Drone Launches . | . . . . . Drone Recoveries . | . . . . . Exploration | -11 -10 -9 -9 -8 ------------- Run | Yrd Mat Mat Min Mat Turns Passed 716 | 34 99 162 33 388 Spaces Moved 438 | 34 87 108 30 179 Core 64 | 13 . . . 51 Treads . | . . . . . Legs . | . . . . . Wheels 374 | 21 87 108 30 128 Hover . | . . . . . Flight . | . . . . . Fastest Speed 50 | 50 80 80 80 50 Average Speed 96 | 68 80 85 80 118 Slowest Speed 350 | 80 80 90 80 350 Overloaded Moves . | . . . . . Propulsion Burnouts . | . . . . . Robots Hopped . | . . . . . Potential Cave-ins . | . . . . . Cave-ins Triggered . | . . . . . Exploration Rate (%) 13 | 3 20 15 13 15 Regions Visited 4 Branch Regions 1 Pre-discovered Areas . | . . . . . Known Exits Taken . | . . . . . Unknown Exits Taken 4 | 1 1 1 1 . Scrap Searched . | . . . . . Spaces Dug . | . . . . . Terrain Destroyed 46 | . 13 29 4 . Melee . | . . . . . Projectile . | . . . . . AOE 46 | . 13 29 4 . Terrain Rammed . | . . . . . Walls Destroyed . | . . . . . Machines Disabled . | . . . . . Actions | -11 -10 -9 -9 -8 --------- Run | Yrd Mat Mat Min Mat Total 602 | 43 102 161 34 262 Wait 42 | . . 32 . 10 Move 434 | 33 86 107 29 179 Hop . | . . . . . Pick Up 24 | 5 1 2 1 15 Fast Attach 1 | 1 . . . . Attach 21 | 4 1 2 2 12 Detach . | . . . . . Swap 2 | . . 1 . 1 Drop 2 | . . . . 2 Fire 57 | . 14 17 2 24 Melee 6 | . . . . 6 Ram 13 | . . . . 13 Kick . | . . . . . Crush . | . . . . . Escape Stasis . | . . . . . Rewire . | . . . . . Trap . | . . . . . Miscellaneous . | . . . . . Route ------- -11/Scrapyard -10/Materials -9/Materials -9/Mines -8/Materials History --------- Turn | Location | Event 7 | -11/Scrapyard | Discovered new exit (range 16) 35 | -11/Scrapyard | Entered Materials 122 | -10/Materials | Discovered new exit (range 15) 134 | -10/Materials | Entered another Materials area 134 | -9/Materials | Evolved 2 slots: Utility x1, Weapon x1 289 | -9/Materials | Discovered new exit (range 7) 296 | -9/Materials | Entered Mines 307 | -9/Mines | Received a Mining Laser from a helpful Derelict 308 | -9/Mines | Discovered new exit (range 7) 329 | -9/Mines | Entered Materials 329 | -8/Materials | Evolved 2 slots: Utility x1, Weapon x1 334 | -8/Materials | Build established: Mutant 374 | -8/Materials | Garrison activated, responded to threat 621 | -8/Materials | Core integrity fell below 50% 663 | -8/Materials | Lost 9 parts (2p1n2u4w) 686 | -8/Materials | Garrison activated, responded to threat 696 | -8/Materials | Core integrity fell below 20% 717 | -8/Materials | Self-destructed Last Messages --------------- 00686_ Y-45 Defender Imp. Ion Engine severed. 00686_ Y-45 Defender calls for garrison reinforcements. 00686_ ALERT: Activating Garrison Access M001. 00689_ Greatsword destroyed. 00692_ Critical hit (Burn: +37). 00698_ Acquired Greatsword. 00702_ R-06 Scavenger collects Lgt. Treads. 00703_ Deuterium Engine destroyed. 00706_ R-06 Scavenger collects Imp. Ion Engine. 00708_ W-25 Informer sends out distress signal. 00708_ R-06 Scavenger collects Hvy. Assault Rifle. 00710_ Critical hit (Burn: +37). 00712_ R-06 Scavenger collects Lgt. Armor Plating. 00713_ Greatsword destroyed. 00715_ System corrupted: Heat flow error (+215). 00715_ R-06 Scavenger collects Heat Sink. 00716_ Greatsword destroyed. Map ----- +----------------------------------------------------+ | ???????????????????????????????????????????????? | | ???????????????????????????????????????????????? | | ???????????????????????????????????????????????? | | ???????????????????????????????????????????????? | | ???????????????????????????????????????????????? | | ???????????????????????????????????????????????? | | ???????????????????????????????????????????????? | | ???????????????????????????????????????????????? | | ???????????????????????????????????????????????? | | ???????????????????????????????????????????????? | | ???????????????????????????????????????????????? | | ?????????????????????? ????????????????????????? | | ?????????????????? ? ???????????????????????? | | ????????????????== T !???????????????????????? | | ?????????????? == ???????????????????????? | | ?????????????? ???????????????????????? | | ?????????????? s "??????????????????????? | | ?????????????? T??????????????????????? | | ??????????????? "??????????????????????? | | ????????????????? #??????????????????????? | | ??????????????????? #??????????????????????? | | ????????????????????# s #??????????????????????? | | ????????????????????# ss#####??????????????????? | | ????????????????????# #??????????????????? | | ????????????????????# #??????????????????? | | ????????????????????+ @!!#??????????????????? | | ????????????????????#^ Y !!#??????????????????? | | ?????????????#??????#wY^ *#??????????????????? | | ?????????????# ###### sY *#??????????????????? | | ?????????????# %s#####?#####????????????? | | ?????????????# * + ?? # ??????????? | | ?????????????# ### ?? # #?????????? | | ?????????????######## #?# ??" #! #?????????? | | ????????????????????# #?# """ # #?????????? | | ????????### ????????# #?# """ # #?????????? | | ????????#= ####### #?# """ # ""#?????????? | | ????????# #?# """ # Y"#?????????? | | ????????+ #?# # ""#?????????? | | ????????# #?# " " # #?????????? | | ????????# ####### #?# "G" ###+############ | | ????????## ?????????# #?# " + + * # | | ????????????????????# #?# # # != # | | ????????????????????# #####+### # # | | ????????????????????# / # # | | ????????????????????# % + # | | ????????????????????# = # # | | ????????????????????######## ##### ## # | | ???????????????????????????# #???# ## # | | ???????????????????????????# #???# ## # | | ???????????????????????????# ##### ########### | +----------------------------------------------------+ Best States ------------- Heat Dissipation 31 Energy Generation 15 Energy Capacity 275 Matter Stores 289 Matter Capacity 300 Sight Range 16 Terrain Scan Density 10 Evasion (%) 50 Item Schematics ----------------- None Robot Schematics ------------------ None Fabricated ------------ Nothing Repaired ---------- Nothing Alien Tech Used ----------------- None Achievements -------------- Oops Challenges ------------ None Game ------ Seed GravityHeatStripper Manual? 0 Play Time 00:15:12 Cumulative 15.2 hours Start 2025.10.04 @ 18:38:36 End 2025.10.04 @ 18:53:27 Sessions 1 Manual Loads 0 Difficulty Rogue Special Mode None Game No. 14 Rogue 14 Adventurer 0 Explorer 0 Win Type - Total 0 Types 0/0/0/0/0/0/0/0/0/0 Lore% 11 Gallery% 16 Achievement% 17 Wizard Run 0 Options --------- Layout 1 ASCII 0 Keyboard 0 Movement Mouse Keybinds 0 Fullscreen 1 Font 32/SmallcapsGlow Map View 50x35 Zoom Use 0% Tactical HUD 1 Map Filters NONE Filters NONE Steam 1 RUN: 637e4cfa-2065-48af-97d3-b516876801de